Cogmind - Beta 10.2 *** ADVENTURER MODE // 2021.08.24 @ 23:39:13 Player: Jezoensis Result: Destroyed by D-53 Grenadier with Mini Grenade Launcher Performance ------------- Evolutions (0) 0 Regions Visited (2) 400 Robots Destroyed (15) 75 Value Destroyed (153) 153 Prototype IDs (0) 0 Alien Tech Used (0) 0 Bonus (0) 0 TOTAL SCORE: 628 Bonus ------- None Cogmind --------- Core Integrity 0/250 Matter 119/300 Energy 100/100 System Corruption 0% Temperature Cool (0) Movement Walking (120) Location -10/Mines Parts ------- > --- POWER (1) -------- (None) > --- PROPULSION (2) --- Aluminum Leg Aluminum Leg > --- UTILITY (2) ------ Large Storage Unit > --- WEAPON (2) ------- (None) > --- INVENTORY (10) --- Medium Storage Unit Improved Terrain Scanner ECM Suite Peak State ------------ > --- POWER ------------ Improved Ion Engine > --- PROPULSION ------- Light Treads Light Treads > --- UTILITY ---------- Large Storage Unit Improved Terrain Scanner > --- WEAPON ----------- Shotgun Shotgun > --- INVENTORY -------- Improved Ion Engine Light Treads Aluminum Leg Aluminum Leg Medium Storage Unit ECM Suite Shotgun Mining Laser [Rating: 12] Favorites ----------- Power Improved Ion Engine Engine Improved Ion Engine Propulsion Light Treads Treads Light Treads Leg Aluminum Leg Utility Large Storage Unit Device Improved Terrain Scanner Storage Large Storage Unit Weapon Shotgun Energy Gun Small Laser Ballistic Gun Shotgun Special Weapon Mining Laser Build | -11 -10 -10 ------- Run | Scr Mat Min Slots Evolved . | . . . Power . | . . . Propulsion . | . . . Utility . | . . . Weapon . | . . . Parts Attached 23 | 7 9 7 Power 3 | 1 1 1 Engine 3 | 1 1 1 Core . | . . . Reactor . | . . . Propulsion 6 | 2 . 4 Treads 4 | 2 . 2 Leg 2 | . . 2 Wheel . | . . . Hover . | . . . Flight . | . . . Utility 4 | 2 2 . Device 1 | . 1 . Storage 3 | 2 1 . Processor . | . . . Hackware . | . . . Protection . | . . . Artifact . | . . . Weapon 10 | 2 6 2 Energy Gun 1 | 1 . . Energy Cannon . | . . . Ballistic Gun 6 | 1 4 1 Ballistic Cannon . | . . . Launcher . | . . . Special Weapon 3 | . 2 1 Impact Weapon . | . . . Slashing Weapon . | . . . Piercing Weapon . | . . . Special Melee Weapon . | . . . Unidentified Prototypes . | . . . Parts Lost 11 | . . 11 Power 2 | . . 2 Propulsion 4 | . . 4 Utility 1 | . . 1 Weapon 4 | . . 4 Highest Loss Streak 11 | . . 11 Average Slot Usage (%) 94 | . 99 92 Engine 13 | . 14 13 Treads 26 | . 28 25 Device 9 | . 3 12 Storage 17 | . 24 14 Energy Gun 2 | . 5 . Ballistic Gun 21 | . 16 24 Special Weapon 1 | . 4 . Naked Turns . | . . . Heaviest Build 30 | 15 30 30 Greatest Support 40 | 40 40 40 Greatest Overweight (x) 1 | . . 1 Average Overweight (x) . | . . . Largest Inventory Capacity 12 | 8 12 10 Average Capacity 9 | 6 8 10 Most Carried 10 | 6 10 10 Average Carried 8 | 4 7 8 Final Capacity 10 | 8 10 10 Final Carried 9 | 6 9 3 Class Distribution -------------------- 100% | Mutant Dominant Class ---------------- Mutant | -10/Materials Mutant | -10/Mines Resources | -11 -10 -10 ----------- Run | Scr Mat Min Matter Collected 414 | 259 26 129 Remotely . | . . . Salvage Created 448 | 126 113 209 Parts 28 | 8 6 14 Haulers Intercepted 1 | . 1 . Recyclers Shooed . | . . . Parts Field Recycled . | . . . Retrieved Matter . | . . . Parts Self-Destructed . | . . . Prevented . | . . . Kills | -11 -10 -10 ------- Run | Scr Mat Min Combat Hostiles Destroyed 18 | . 4 14 Guns 18 | . 4 14 Classes Destroyed 6 | 2 3 1 Tunneler 3 | 2 . 1 Hauler 1 | . 1 . Recycler 1 | 1 . . Swarmer 9 | . 3 6 Grunt 1 | . 1 . Assembled 8 | . . 8 Best Kill Streak 8 | 3 3 8 Combat Bots Only 8 | . 3 8 Max Kills in Single Turn 2 | 1 1 2 Gunslinging 1 | . . 1 Exploded . | . . . Melee . | . . . Uniques/NPCs Destroyed . | . . . Combat | -11 -10 -10 -------- Run | Scr Mat Min Damage Taken 1613 | . 90 1523 Core 255 | . 17 238 Absorbed by Shields . | . . . Core Remaining (%) 100 | 100 . . Volleys Fired 54 | 7 24 23 Largest 2 | 2 2 2 Hottest 100 | 60 100 46 Shots Fired 97 | 14 39 44 Gun 90 | 14 32 44 Cannon . | . . . Launcher . | . . . Special 7 | . 7 . Kinetic 74 | 7 23 44 Thermal 23 | 7 16 . Explosive . | . . . Electromagnetic . | . . . Robot Hit Streak 12 | 11 12 10 Robot Miss Streak 3 | . 3 2 Penetration Max . | . . . Secondary Targets 7 | . 1 6 Max Gunslinging Chain 1 | . 1 1 Shots Hit Robots 70 | 11 21 38 Core Hits 39 | 5 8 26 Critical Hits 1 | . 1 . Critical Kills 1 | . 1 . Critical Parts Destroyed . | . . . Melee Attacks . | . . . Impact . | . . . Slashing . | . . . Piercing . | . . . Sneak Attacks . | . . . Combat Hostiles . | . . . Follow-up Attacks . | . . . Damage Inflicted 880 | 107 282 491 Guns 857 | 106 282 469 Cannons . | . . . Explosions . | . . . Melee . | . . . Ramming 23 | 1 . 22 Kinetic 706 | 31 206 469 Thermal 151 | 75 76 . Explosive . | . . . Electromagnetic . | . . . Impact . | . . . Slashing . | . . . Piercing . | . . . Highest Corruption . | . . . Average Corruption . | . . . Corruption Purged . | . . . Overload Shots . | . . . Overflow Damage . | . . . Projectiles . | . . . Explosions . | . . . Melee . | . . . Knockbacks . | . . . Impact . | . . . Kinetic . | . . . Secondary . | . . . Self-Inflicted Damage 9 | . . 9 Shots . | . . . Rammed 7 | 1 . 6 Targets Rammed 8 | 1 . 7 Kicked 1 | . . 1 Crushed . | . . . Highest Temperature 64 | 40 60 64 Average Temperature 24 | 23 22 32 Received Heat Transfer 172 | . 12 160 Siege Activations . | . . . Robots Corrupted . | . . . Combat Hostiles . | . . . Parts Fried . | . . . Impact Corruptions . | . . . Robots Melted . | . . . Combat Hostiles . | . . . Parts Melted 1 | . 1 . Heat Transferred 350 | 175 175 . Parts Sabotaged . | . . . Parts Stolen . | . . . Parts Stripped . | . . . Power Chain Reactions . | . . . Missiles Intercepted . | . . . Alert | -11 -10 -10 ------- Run | Scr Mat Min Peak Influence 191 | 15 141 191 Initial 46 | . 8 46 Average 79 | 5 78 93 Maximum Alert Level . | . . . Low Security (%) 100 | 100 100 100 Level 1 . | . . . Level 2 . | . . . Level 3 . | . . . Level 4 . | . . . Level 5 . | . . . High Security . | . . . Max Security . | . . . Squads Dispatched . | . . . Investigation . | . . . Extermination . | . . . Reinforcement . | . . . Assault . | . . . Garrison . | . . . Intercept . | . . . Construction Impeded . | . . . Haulers Reinforced . | . . . Stealth | -11 -10 -10 --------- Run | Scr Mat Min Distress Signals . | . . . Communications Jammed . | . . . Distress Signals . | . . . Times Spotted 33 | . 6 27 Peak Tracking Total 10 | . 3 10 Tactical Retreats . | . . . Traps | -11 -10 -10 ------- Run | Scr Mat Min Traps Triggered . | . . . Indirectly . | . . . Trap Hack Attempts . | . . . Triggered . | . . . Disarmed . | . . . Reprogrammed . | . . . Reused . | . . . Traps Extracted . | . . . Installed . | . . . Triggered . | . . . Machines | -11 -10 -10 ---------- Run | Scr Mat Min Machines Disabled . | . . . Max in Single Turn . | . . . Machines Sabotaged . | . . . Garrisons Compromised . | . . . Overloaded Fab Kills . | . . . Fab Network Shutdowns . | . . . Hacking | -11 -10 -10 --------- Run | Scr Mat Min Machines Accessed 3 | . 1 2 Terminals 3 | . 1 2 Fabricators . | . . . Repair Stations . | . . . Recycling Units . | . . . Scanalyzers . | . . . Garrison Access . | . . . Total Hacks 11 | . 6 5 Successful 6 | . 5 1 Failed 4 | . . 4 Catastrophic . | . . . Database Lockouts 1 | . 1 . Manual 9 | . 4 5 Terminals 11 | . 6 5 Fabricators . | . . . Repair Stations . | . . . Recycling Units . | . . . Scanalyzers . | . . . Garrison Access . | . . . Terminal Hacks 6 | . 5 1 Part Schematic 2 | . 2 . Robot Analysis 1 | . 1 . Locate Traps 1 | . 1 . Zone Layout 2 | . 1 1 Fabricator Hacks . | . . . Repair Station Hacks . | . . . Recycling Unit Hacks . | . . . Scanalyzer . | . . . Garrison Access Hacks . | . . . Unauthorized Hacks . | . . . Terminals . | . . . Fabricators . | . . . Repair Stations . | . . . Recycling Units . | . . . Scanalyzers . | . . . Garrison Access . | . . . Data Cores Recovered . | . . . Used . | . . . Hacking Detections 2 | . . 2 Full Trace Events . | . . . Feedback Events . | . . . Feedback Blocked . | . . . Robot Schematics Acquired . | . . . Robots Built . | . . . Matter . | . . . Time . | . . . Total Robot Build Rating . | . . . Part Schematics Acquired 2 | . 2 . Parts Built . | . . . Matter . | . . . Time . | . . . Total Part Build Rating . | . . . Parts Repaired . | . . . Time . | . . . Parts Recycled . | . . . Recycled Matter . | . . . Retrieved Matter . | . . . Retrieved Components . | . . . Parts Scanalyzed . | . . . Part Schematics Acquired . | . . . Parts Damaged . | . . . Bothacking | -11 -10 -10 ------------ Run | Scr Mat Min Used RIF Installer . | . . . Robots Hacked . | . . . Non-combat . | . . . Combat . | . . . Robot Hacks Applied . | . . . Relay Couplers Released . | . . . Robots Rewired . | . . . Allies Hacked . | . . . Hacks Repelled . | . . . Allies | -11 -10 -10 -------- Run | Scr Mat Min Total Allies . | . . . Largest Group . | . . . Highest-Rated Group . | . . . Highest-Rated Ally . | . . . Total Orders . | . . . Ally Attacks . | . . . Total Damage . | . . . Kills . | . . . Allies Corrupted . | . . . Allies Melted . | . . . Intel | -11 -10 -10 ------- Run | Scr Mat Min Robot Analysis Total 1 | . 1 . Derelict Logs Recovered 3 | . . 3 Drone Launches . | . . . Drone Recoveries . | . . . Exploration | -11 -10 -10 ------------- Run | Scr Mat Min Turns Passed 941 | 102 301 538 Spaces Moved 458 | 49 127 282 Core 13 | 13 . . Treads 443 | 36 127 280 Legs 2 | . . 2 Wheels . | . . . Hover . | . . . Flight . | . . . Fastest Speed 50 | 50 160 120 Average Speed 157 | 130 160 160 Slowest Speed 180 | 160 160 180 Overloaded Moves . | . . . Propulsion Burnouts . | . . . Robots Hopped . | . . . Cave-ins Triggered . | . . . Exploration Rate (%) 36 | 4 27 79 Regions Visited 2 Branch Regions 1 Pre-discovered Areas 2 | . . 2 Known Exits Taken . | . . . Unknown Exits Taken 2 | 1 1 . Scrap Searched 1 | . . 1 Spaces Dug 6 | . 6 . Terrain Destroyed 6 | . 6 . Melee . | . . . Projectile 6 | . 6 . AOE . | . . . Terrain Rammed . | . . . Walls Destroyed . | . . . Machines Disabled . | . . . Actions | -11 -10 -10 --------- Run | Scr Mat Min Total 569 | 72 177 320 Wait . | . . . Move 457 | 49 126 282 Hop . | . . . Pick Up 18 | 9 8 1 Fast Attach 6 | 4 2 . Attach 12 | 3 2 7 Detach 1 | . 1 . Swap 5 | . 5 . Drop 9 | . 9 . Fire 54 | 7 24 23 Melee . | . . . Ram . | . . . Kick 7 | . . 7 Crush . | . . . Escape Stasis . | . . . Rewire . | . . . Trap . | . . . Miscellaneous . | . . . Route ------- -11/Scrapyard -10/Materials (discovered 2 exits: [*Mat] / *Min) -10/Mines (discovered 1 exit: [Mat]) History --------- Turn | Location | Event 30 | -11/Scrapyard | Discovered new exit (range 15) 103 | -11/Scrapyard | Entered Materials 255 | -10/Materials | Discovered new exit (range 12) 257 | -10/Materials | Central database locked down 257 | -10/Materials | Discovered new exit (range 16) 310 | -10/Materials | Build established: Mutant 404 | -10/Materials | Entered Mines 495 | -10/Mines | Learned location of Zion (-7) 702 | -10/Mines | Discovered new exit (range 13) 809 | -10/Mines | Learned location of 1 exit from Materials 818 | -10/Mines | Assembled infested the area 823 | -10/Mines | Assisted by a Guerilla fighting off Assembled 879 | -10/Mines | Destroyed 8 combat bots 885 | -10/Mines | Core integrity fell below 50% 912 | -10/Mines | Core integrity fell below 20% 942 | -10/Mines | Destroyed by D-53 Grenadier with Mini Grenade Launcher Last Messages --------------- 00896_ The unstable cave ceiling collapses. 00915_ Imp. Ion Engine destroyed. 00917_ Searching scrap... 00917_ Found Heat Sink. 00917_ Found 32 Matter. 00918_ Acquired 32 matter. 00919_ The unstable cave ceiling collapses. 00929_ Mining Laser destroyed. 00929_ Lgt. Treads destroyed. 00930_ K-01 Serf collects debris. 00932_ The unstable cave ceiling collapses. 00933_ Slammed into D-53 Grenadier. 00934_ The unstable cave ceiling collapses. 00935_ Kicked D-53 Grenadier out of the way. 00936_ Slammed into D-53 Grenadier. 00938_ K-01 Serf collects debris. 00938_ Slammed into D-53 Grenadier. 00941_ The unstable cave ceiling collapses. 00941_ Slammed into D-53 Grenadier. 00942_ K-01 Serf collects debris. Map ----- +----------------------------------------------------+ | ????????## ##???## ## ????? | | ????????### #?#??####? # ???? | | ?########## #???????? ## ??? | | ## #??#?????? #? ??? | | ##????????? #?? #?? | | #### ### ####?????????? #??? #?? | | ##?## #?## ##???????#??????#???? ##?? | | ####?#### #???####???????????????#?????#??? | | ##??????## #????#??????????????????????????? | | ##????????# ###?????????????????????????????? | | #?????????# #???????????????????????????????? | | #???????#?# #???????????????????????????????? | | ##?????????# #???????????????????????????????? | | #??????????? #???????????????????????????????? | | ?????????#?? #???????????????????????????????? | | ???????????#? #??????????#????????????????????? | | ????????????? ?????????? #???????????????????? | | ??????????#??##?????????? #???????????????????? | | ???#????????????????????? #???????????????????? | | ?#???#??????#####??#####? ????????????????????? | | ??#???????### # ### # ## ????????????????????? | | #???##?#??# # ##???????????????????? | | ####### # ###?????????????????? | | """ #?????????????????? | | """ #?????????????????? | | """ ### @ #?????????????????? | | ???### # d ##????????????????? | | ???## ##????????????????? | | #??### # # #####????????????? | | #?#?## ## ###??????????? | | # ##?## ### ## ## #??????????? | | # ### #??# # # ## #?????????? | | #### # = ##?? #????????? | | ### # ##???? ???????? | | # #####?# #### ## ??? ????????? | | #####?????# ### ?????????? | | #?????????#%"## % "#????????? | | #?????????# % ""?????????? | | #?????????# ]% "##?????????? | | ??????#??###### # %% %% ###??????????? | | ??????????????### k% #????????????? | | ?????#?????????###### #???????????? | | ?????????????????#???## ### #???????????? | | ?????????????????????#?###?? ##???????????? | | ????????????#??#????????#???? ####????????????? | | ?#????#??#?????????????#????? #???????????????? | | ??????????????????????????????????????????????? | | #??????????????????#??????????????????????????? | | #????#??????#?#???????????????????????????????? | | #???????????????#??#??????????????????????????? | +----------------------------------------------------+ Best States ------------- Heat Dissipation 25 Energy Generation 12 Energy Capacity 265 Matter Stores 300 Matter Capacity 300 Sight Range 16 Terrain Scan Range 16 Terrain Scan Density 10 Resistance: KI 20 Resistance: TH 20 Resistance: EX 20 Resistance: EM 20 Resistance: I 20 Resistance: S 20 Resistance: P 20 Evasion (%) 40 Recoil Reduction 2 Offensive Hacking 10 Item Schematics ----------------- Lrg. Storage Unit | -10/Materials | Hacked ECM Suite | -10/Materials | Hacked Robot Schematics ------------------ None Fabricated ------------ Nothing Alien Tech Used ----------------- None Achievements -------------- None Challenges ------------ None Game ------ Seed AssemblyVariableWeb Manual? 0 Play Time 00:11:17 Cumulative 175.4 hours Start 2021.08.24 @ 23:29:25 End 2021.08.24 @ 23:39:13 Sessions 1 Manual Loads 0 Difficulty Adventurer Special Mode None Game No. 73 Rogue 4 Adventurer 67 Explorer 2 Win Type - Total 7 Types 7/0/0/0/0/0/0/0/0 Lore% 31 Gallery% 65 Achievement% 44 Wizard Run 0 Options --------- ASCII 0 Keyboard 1 Movement Numpad Keybinds 0 Fullscreen 1 Font 36/TerminusFine Map View 76x50 Tactical HUD 1 Map Filters NONE Filters NONE Steam 1 RUN: 2d2e1977-3750-4fb7-8eee-eb5aae85e72c